Cogmind - Beta 16 @@@ ROGUE MODE // 2025.11.11 @ 10:37:15 Player: Anting Result: Core destroyed Performance ------------- Evolutions (7) 3500 Regions Visited (21) 4200 Robots Destroyed (229) 1145 Value Destroyed (10539) 10539 Prototype IDs (106) 2120 Alien Tech Used (2) 400 Bonus (4919) 4919 TOTAL SCORE: 26823 Bonus ------- High Alert Combat Kills 1825 Follower Combat Kills 263 Met Zhirov 300 Met Warlord at Base 500 MAIN.C Attacked Warlord 500 Warlord Defense Kills 1590 Scanned by Researcher 500 Friendly Fire -559 Cogmind --------- Core Integrity 0/1300 Matter 283/300 Energy 100/100 System Corruption 25% Temperature Critical (690) Movement Core (50) Location -3/Protoforge Parts ------- > --- POWER (2) -------- (None) > --- PROPULSION (5) --- (None) > --- UTILITY (11) ----- Advanced Signal Interpreter > --- WEAPON (3) ------- (None) > --- INVENTORY (5) ---- Concept Chromion Battery (43) Experimental Active Sensor Suite Vortex Shotgun (32) HERF Cannon Peak State ------------ > --- POWER ------------ Quantum-Antimatter Reactor > --- PROPULSION ------- Hovering Aerolev-Combat Exoskeleton > --- UTILITY ---------- Armored Scrap Engine Advanced Heat Sink Advanced Heat Sink Concept Antigrav Storage Unit Advanced Sensor Array Advanced Signal Interpreter Advanced Weapon Cycler Improved Transmission Jammer Centrium Medium Armor Plating Advanced Force Field > --- WEAPON ----------- Concept Plasma Driver Prc. Thermic Caster Construct/C > --- INVENTORY -------- Advanced Cryofiber Web Experimental Coolant Injector Advanced Energy Well Concept Chromion Battery Concept Chromion Battery Concept Chromion Battery Concept NT7 Matterbank Concept NT7 Matterbank Experimental Active Sensor Suite Concept Network Penetrator Crosscalibrator Subatomic Replicator Vortex Shotgun HERF Cannon Tiamat Missile Launcher Concept Rapid Grenade Launcher Concept Deflector Sword [Rating: 190] Favorites ----------- Power Constructs Engine Improved Deuterium Engine Reactor Constructs Propulsion Light Treads Treads Light Treads Leg Aluminum Leg Hover Unit Constructs Flight Unit Improved Flight Unit Utility Large Storage Unit Device Armored Scrap Engine Storage Large Storage Unit Processor Advanced Signal Interpreter Hackware Hacking Suite Protection Light Armor Plating Weapon Constructs Energy Gun Small Laser Energy Cannon Constructs Ballistic Gun Hypervelocity Coil Gun Ballistic Cannon Constructs Launcher Tiamat Missile Launcher Special Melee Weapon Advanced Datajack Build | -11 -10 -10 -8 -7 -7 -7 -5 -5 -5 -5 -4 -4 -4 -4 -4 -4 -4 -3 -3 -3 -3 ------- Run | Yrd Mat Sub Mat Fac Sto Rec Fac Upp Upp Zhi Pro Fac Was Fac Upp Upp War Pro Res Qua Frg Slots Evolved 14 | . . . 4 2 . . 4 . . . . 2 . . . . . . 2 . . Power 1 | . . . . . . . 1 . . . . . . . . . . . . . . Propulsion 3 | . . . 1 1 . . 1 . . . . . . . . . . . . . . Utility 9 | . . . 2 1 . . 2 . . . . 2 . . . . . . 2 . . Weapon 1 | . . . 1 . . . . . . . . . . . . . . . . . . Parts Attached 115 | 7 9 4 8 17 4 1 9 5 3 2 1 10 . 7 1 1 7 1 8 1 9 Power 4 | 1 . 1 . 2 . . . . . . . . . . . . . . . . . Engine 4 | 1 . 1 . 2 . . . . . . . . . . . . . . . . . Core . | . . . . . . . . . . . . . . . . . . . . . . Reactor . | . . . . . . . . . . . . . . . . . . . . . . Propulsion 14 | 2 2 1 3 4 2 . . . . . . . . . . . . . . . . Treads 10 | . 2 1 3 4 . . . . . . . . . . . . . . . . . Leg 2 | 2 . . . . . . . . . . . . . . . . . . . . . Wheel . | . . . . . . . . . . . . . . . . . . . . . . Hover . | . . . . . . . . . . . . . . . . . . . . . . Flight 2 | . . . . . 2 . . . . . . . . . . . . . . . . Utility 67 | 2 4 . 2 7 . 1 5 5 2 2 1 7 . 6 1 1 4 1 8 1 7 Device 38 | 1 1 . . 2 . 1 3 5 2 1 1 4 . 4 1 1 3 1 3 1 3 Storage 7 | 1 1 . 1 1 . . . . . . . . . . . . . . 2 . 1 Processor 5 | . . . . 1 . . . . . . . 2 . . . . 1 . . . 1 Hackware 4 | . . . . 1 . . . . . . . . . 2 . . . . 1 . . Protection 13 | . 2 . 1 2 . . 2 . . 1 . 1 . . . . . . 2 . 2 Artifact . | . . . . . . . . . . . . . . . . . . . . . . Weapon 30 | 2 3 2 3 4 2 . 4 . 1 . . 3 . 1 . . 3 . . . 2 Energy Gun 4 | 1 . 1 . . 1 . . . . . . . . . . . 1 . . . . Energy Cannon 12 | . . 1 1 2 1 . 3 . . . . 1 . 1 . . 1 . . . 1 Ballistic Gun 9 | 1 3 . 2 2 . . . . 1 . . . . . . . . . . . . Ballistic Cannon 1 | . . . . . . . . . . . . . . . . . 1 . . . . Launcher 3 | . . . . . . . 1 . . . . 1 . . . . . . . . 1 Special Weapon . | . . . . . . . . . . . . . . . . . . . . . . Impact Weapon . | . . . . . . . . . . . . . . . . . . . . . . Slashing Weapon . | . . . . . . . . . . . . . . . . . . . . . . Piercing Weapon . | . . . . . . . . . . . . . . . . . . . . . . Special Melee Weapon 1 | . . . . . . . . . . . . 1 . . . . . . . . . Unidentified Prototypes 19 | . . . . . 4 1 . . . 2 . 1 . 2 . . 6 . 2 . 1 Parts Lost 53 | . . . 1 8 . . 12 . 3 . 1 2 . . 1 . . . 1 . 24 Power 4 | . . . . 1 . . 1 . . . . . . . . . . . . . 2 Propulsion 9 | . . . 1 2 . . 1 . . . . . . . . . . . . . 5 Utility 28 | . . . . 3 . . 7 . 1 . 1 1 . . 1 . . . . . 14 Weapon 12 | . . . . 2 . . 3 . 2 . . 1 . . . . . . 1 . 3 Highest Loss Streak 19 | . . . 1 7 . . 3 . 2 . 1 1 . . 1 . . . 1 . 19 To Critical Strikes . | . . . . . . . . . . . . . . . . . . . . . . Average Backups 12 | 3 9 9 10 13 18 17 8 13 12 13 14 13 14 12 12 13 13 13 15 15 13 Power . | . . . . . . . . . . . . . . . . . . . . . . Propulsion 1 | 1 3 3 3 3 6 5 2 1 2 1 1 . . . . . . . . . . Utility 6 | . 2 2 2 4 6 6 3 9 9 11 12 9 10 8 9 8 7 7 8 9 7 Weapon 3 | . 2 4 4 4 6 5 3 1 . . . 1 3 2 2 3 4 5 5 4 3 Tool/Special . | . . . . . . . . . . . . . . . . . . . . . . Unused Backups 53 | . 5 . 1 . 4 7 . . 3 1 1 7 . 1 . 1 1 1 5 4 11 Power 1 | . 1 . . . . . . . . . . . . . . . . . . . . Propulsion 7 | . . . . . . 5 . . . 1 . 1 . . . . . . . . . Utility 28 | . 3 . 1 . . . . . 3 . 1 6 . . . 1 1 . 2 1 9 Weapon 16 | . 1 . . . 4 2 . . . . . . . 1 . . . 1 3 3 1 Tool/Special 1 | . . . . . . . . . . . . . . . . . . . . . 1 Average Slot Usage (%) 70 | . 96 100 98 96 99 87 52 49 57 57 57 60 63 63 62 63 57 61 60 58 58 Engine 4 | . 13 14 9 6 7 6 5 5 5 5 5 . . . . . . . . . . Reactor 1 | . . . . . . . . . . . . . . 5 5 5 5 1 3 4 3 Treads 9 | . 22 28 26 29 29 22 4 . 1 5 . . . . . . . . . . . Leg 1 | . 5 . . . . . . 4 3 . 3 . . . . . 3 . . . . Hover 1 | . . . . . . 1 . . . . . . . . 5 5 1 5 4 4 3 Device 19 | . 12 12 9 6 7 10 16 19 28 28 28 27 26 25 25 26 26 25 28 22 22 Storage 6 | . 14 14 9 7 7 7 5 5 5 5 5 5 5 5 5 5 5 5 4 4 3 Processor 4 | . . . . 5 7 7 1 . . . . 5 10 10 10 10 10 10 9 9 8 Hackware 1 | . . . . 5 7 3 . . . . . . . . . . . . 2 4 1 Protection 2 | . 1 1 17 8 7 3 2 . . . . 1 . . . . . . . 2 3 Energy Gun 1 | . 6 9 1 . . . 2 . . . . . . . . . . . . . . Energy Cannon 7 | . . . 9 7 19 18 9 10 2 5 4 5 5 5 10 10 5 9 4 2 5 Ballistic Gun 4 | . 18 17 16 14 3 1 . . 4 5 5 4 . . . . . . . . . Peak Build Rating 190 | 7 8 10 20 38 44 59 68 84 87 92 102 102 104 124 122 122 146 142 159 149 190 Average Rating 80 | 5 7 9 16 29 39 47 60 72 83 89 90 91 102 117 119 120 133 136 151 142 148 On Entrance 78 | . 7 8 10 20 38 41 52 67 84 87 102 85 102 104 123 120 122 132 140 155 138 Avg Prop Armor Cover (%) . | . . . . . . . . . . . . . . . . . . . . . . Naked Turns . | . . . . . . . . . . . . . . . . . . . . . . Heaviest Build 124 | 13 21 24 46 73 76 76 64 63 62 56 58 59 45 60 64 68 68 84 124 104 111 Greatest Support 140 | 20 40 40 60 80 80 80 93 99 99 100 100 75 75 111 101 101 140 140 100 100 115 Greatest Overweight (x) 3 | 3 . . . . 1 2 1 . . . . . . . . . . . 1 1 1 Average Overweight (x) . | . . . . . . . . . . . . . . . . . . . . . . Largest Inventory Capacity 25 | 8 10 10 15 20 20 20 15 15 15 15 15 15 15 15 15 15 15 15 20 20 25 Average Capacity 14 | 7 9 10 12 15 20 19 15 15 15 15 15 15 15 15 15 15 15 15 18 16 15 Most Carried 20 | 5 10 10 13 17 20 20 13 15 15 15 15 15 15 15 15 15 15 15 20 20 18 Average Carried 13 | 3 9 9 10 13 19 18 9 14 13 14 14 14 15 13 14 14 14 14 16 15 13 Final Capacity 20 | 8 10 10 15 20 20 15 15 15 15 15 15 15 15 15 15 15 15 15 20 15 5 Final Carried 20 | 5 10 10 13 17 20 14 13 15 13 15 15 15 15 15 15 15 15 15 20 14 5 Scrap Engine Consumption 222 | . . . . . . 35 40 6 15 9 13 21 3 7 1 . 21 11 12 8 20 Constructs Created 9 | . . . . . . 3 4 . . . . . . . . . . 1 1 . . Constructs Modified 90 | . . . . . . 11 11 5 6 3 5 5 1 7 . . 7 7 6 5 11 Class Distribution -------------------- 55% | Construct 15% | Mutant 12% | Scavenger-Gunner 6% | Commander-Construct 4% | Scavenger-Tank 4% | Derelict-Construct Dominant Class ---------------- Mutant | -10/Materials Mutant | -10/Subcaves Scavenger-Tank | -8/Materials Scavenger-Gunner | -7/Factory Scavenger-Gunner | -7/Storage Scavenger-Gunner | -7/Recycling Construct | -5/Factory Construct | -5/Upper Caves Construct | -5/Upper Caves Derelict-Construct | -5/Zhirov Derelict-Construct | -4/Proximity Caves Construct | -4/Factory Construct | -4/Waste Construct | -4/Factory Construct | -4/Upper Caves Construct | -4/Upper Caves Commander-Construct | -4/Warlord Construct | -3/Proximity Caves Construct | -3/Research Construct | -3/Quarantine Construct | -3/Protoforge Resources | -11 -10 -10 -8 -7 -7 -7 -5 -5 -5 -5 -4 -4 -4 -4 -4 -4 -4 -3 -3 -3 -3 ----------- Run | Yrd Mat Sub Mat Fac Sto Rec Fac Upp Upp Zhi Pro Fac Was Fac Upp Upp War Pro Res Qua Frg Matter Collected 5636 | 287 324 199 186 438 69 149 455 169 393 107 352 228 . 76 159 38 341 109 298 486 773 Remotely . | . . . . . . . . . . . . . . . . . . . . . . Salvage Created 12602 | 150 347 94 287 671 132 1287 1872 457 416 324 369 318 . 198 251 . 606 1017 625 548 2633 Parts 528 | 8 33 6 13 34 1 35 64 16 16 6 21 34 . 10 8 . 24 28 24 20 127 Haulers Intercepted 4 | . 2 . . . . . 1 . . . . . . . . . . . 1 . . Recyclers Shooed 7 | . . . . 1 . 3 1 . . . . 1 . 1 . . . . . . . Parts Field Recycled . | . . . . . . . . . . . . . . . . . . . . . . Retrieved Matter . | . . . . . . . . . . . . . . . . . . . . . . Parts Self-Destructed 64 | . . 7 . . . . . 4 8 . 8 . . . 8 . . 29 . . . Prevented 6 | . . . . . . . . 1 5 . . . . . . . . . . . . Parts Restored . | . . . . . . . . . . . . . . . . . . . . . . Kills | -11 -10 -10 -8 -7 -7 -7 -5 -5 -5 -5 -4 -4 -4 -4 -4 -4 -4 -3 -3 -3 -3 ------- Run | Yrd Mat Sub Mat Fac Sto Rec Fac Upp Upp Zhi Pro Fac Was Fac Upp Upp War Pro Res Qua Frg Combat Hostiles Destroyed 176 | . 11 2 5 13 2 4 30 4 5 . 10 6 . 2 3 . 10 9 3 3 54 Guns 36 | . 11 1 3 11 . . 3 . . . 4 1 . . . . . . . . 2 Cannons 86 | . . 1 2 2 1 4 10 . 4 . 6 5 . 2 3 . 2 9 3 3 29 AOE 44 | . . . . . . . 14 4 1 . . . . . . . 8 . . . 17 Classes Destroyed 26 | 2 4 1 3 3 . 1 1 1 . . 1 . . . . . 5 . . . 4 Worker 6 | . . . 1 1 . . . . . . . . . . . . . . 3 . 1 Builder 9 | . . . . . . 1 3 . . . . 1 . 1 . . . . . . 3 Tunneler 3 | 3 . . . . . . . . . . . . . . . . . . . . . Hauler 4 | . 2 . . . . . 1 . . . . . . . . . . . 1 . . Recycler 22 | 1 . . . . . 14 4 . . . . . . . . . . . 1 2 . Mechanic 1 | . . . . . . . . . . . . . . . . . 1 . . . . Operator 4 | . . . 1 . . . . . . . . . . 1 . . . . 1 . 1 Drone 14 | . . . . . . . . . . . 1 . . . . . . . . . 13 Watcher 9 | . 1 . . . . . . . . . . 2 . 1 . . . . 2 2 1 Swarmer 33 | . 8 . . 1 . . 4 4 . . 7 4 . . . . . 1 . . 4 Saboteur 1 | . . . . . . . . . . . . . . . . . . . . . 1 Grunt 50 | . 3 . 2 6 . . 18 . 3 . 2 . . . 2 . 3 . . 2 9 Brawler 3 | . . . . 1 . . . . . . . . . . . . . 1 . . 1 Duelist 3 | . . . . 2 . . . . . . . . . . . . 1 . . . . Protector 1 | . . . . . . . . . . . . . . . . . 1 . . . . Researcher 1 | . . . . . . . . . . . . . . . . . . . . . 1 Sentry 26 | . . . 3 2 2 4 3 . 1 . . . . 1 1 . . 4 1 . 4 Hunter 16 | . . . . . . . 2 . 1 . . . . . . . 1 3 2 . 7 Programmer 17 | . . . . 1 . . 3 . . . . 2 . 1 . . 2 . . 1 7 Decapitator 4 | . . . . . . . . . . . . . . . . . . . . . 4 Immortal 2 | . . . . . . . . . . . . . . . . . . . . . 2 Striker 1 | . . . . . . . . . . . . . . . . . 1 . . . . Executioner 1 | . . . . . . . . . . . . . . . . . 1 . . . . V-Series 2 | . . . . . . . . . . . . . . . . . . . . . 2 Subdweller 2 | . . 2 . . . . . . . . . . . . . . . . . . . Decomposer 1 | . . . . . . . . . . . . . . . 1 . . . . . . Samaritan 9 | . . . . . . . . 4 3 . . . . . . . . 2 . . . Savage 1 | . . . . . . . . . . . . . . . . . 1 . . . . Mutant 1 | . . . . . . . . . . . . . . . . . 1 . . . . Best Kill Streak 13 | 2 3 1 3 5 2 6 8 4 2 . 4 4 . 3 3 . 5 3 3 2 13 Combat Bots Only 10 | . 3 1 2 4 2 2 6 4 2 . 4 4 . 1 3 . 4 3 2 1 10 Max Kills in Single Turn 5 | 1 1 1 2 2 1 1 4 2 1 . 1 2 . 1 1 . 2 1 1 1 5 Gunslinging . | . . . . . . . . . . . . . . . . . . . . . . Exploded 4 | . . . . . . . 4 2 1 . . . . . . . 2 . . . 4 Melee . | . . . . . . . . . . . . . . . . . . . . . . Uniques/NPCs Destroyed . | . . . . . . . . . . . . . . . . . . . . . . Combat | -11 -10 -10 -8 -7 -7 -7 -5 -5 -5 -5 -4 -4 -4 -4 -4 -4 -4 -3 -3 -3 -3 -------- Run | Yrd Mat Sub Mat Fac Sto Rec Fac Upp Upp Zhi Pro Fac Was Fac Upp Upp War Pro Res Qua Frg Hostile Shots Fired 1223 | . 43 9 10 143 29 63 217 7 59 . 57 18 . 16 32 . 10 54 97 21 338 Missed 418 | . 8 1 2 39 11 24 61 2 19 . 15 6 . 6 14 . 5 20 23 11 151 Hits 805 | . 35 8 8 104 18 39 156 5 40 . 42 12 . 10 18 . 5 34 74 10 187 Melee 53 | . . . . 30 . . . . . . . . . . . . . . . . 23 Projectile 752 | . 35 8 8 74 18 39 156 5 40 . 42 12 . 10 18 . 5 34 74 10 164 AOE 5 | . . . . . . . 2 . . . . . . . . . . . . . 3 Critical Strikes 57 | . . 1 1 8 . . 14 . 2 . 2 . . 2 1 . . . 1 . 25 Part Disruptions 1 | . . . . . . . 1 . . . . . . . . . . . . . . Damage Taken 16659 | . 353 230 135 1836 149 301 3640 115 709 . 697 213 . 252 303 . 98 374 1054 112 6088 Core 2154 | . 35 27 13 253 . 33 174 27 57 . 15 . . 23 23 . . 49 55 21 1349 Absorbed by Shields 1853 | . . . . . . . . . . . . 19 . 5 21 . 101 370 416 117 804 Ignored by Resistances 89 | . . . . . . . . . . . . 3 . . 51 . . 35 . . . Regen/Repaired (Parts) 4168 | . . . . . . 10 757 96 399 190 117 198 119 246 . . 416 104 20 208 1288 Core Remaining (%) 82 | 100 . 75 97 . . 59 . . . . 72 . . . . . . 91 . . . Volleys Fired 962 | 17 46 18 8 38 22 45 114 33 92 13 44 21 7 35 15 14 47 114 35 28 156 Largest 3 | 2 2 2 3 3 3 3 3 1 2 1 2 2 1 1 1 1 1 2 1 1 2 Hottest 406 | 60 60 80 140 183 185 185 170 60 205 170 205 120 85 85 85 85 85 406 406 270 231 Shots Fired 1345 | 34 92 24 22 103 31 74 178 33 100 13 78 25 6 35 15 15 47 165 35 28 192 Gun 362 | 34 92 15 14 75 . . 24 . 58 . 39 4 . . . . . . . . 7 Cannon 944 | . . 9 8 28 31 74 143 30 40 13 39 21 6 35 15 15 40 165 35 28 169 Launcher 39 | . . . . . . . 11 3 2 . . . . . . . 7 . . . 16 Special . | . . . . . . . . . . . . . . . . . . . . . . Kinetic 304 | 17 48 9 14 75 . . . . 67 . 39 4 . . . . 4 . . 27 . Thermal 877 | 17 44 6 8 28 31 74 136 11 31 13 39 21 6 35 15 15 36 165 35 1 110 Explosive 39 | . . . . . . . 11 3 2 . . . . . . . 7 . . . 16 Electromagnetic 118 | . . 9 . . . . 31 19 . . . . . . . . . . . . 59 Entropic 7 | . . . . . . . . . . . . . . . . . . . . . 7 Robot Hit Streak 19 | 5 15 6 8 14 5 9 12 9 10 5 3 10 16 18 3 . 5 12 8 10 19 Robot Miss Streak 9 | 3 5 2 3 5 1 3 3 1 5 1 9 3 . 1 2 . 3 1 3 3 3 Penetration Max 3 | . . . . . . . . . . . 1 3 . . . . . . . . 1 Secondary Targets 3 | . 1 . . 2 . . . . . . . . . . . . . . . . . Max Gunslinging Chain 1 | . 1 . . 1 . . . . . . . . . . . . . . . . . Shots Hit Robots 638 | 19 56 8 13 71 10 44 89 18 54 11 32 11 6 10 9 . 13 39 12 8 105 Core Hits 398 | 9 25 5 10 45 3 20 73 14 18 4 15 10 1 4 3 . 32 15 7 5 80 Critical Kills 6 | . . 1 . . 1 . . . 1 . 2 1 . . . . . . . . . Critical Parts Destroyed 16 | . 1 . . . . . . . 8 . 4 2 . . . . . . . . 1 Critical Strikes 24 | . 1 1 . . 1 . . 1 10 . 6 3 . . . . . . . . 1 Meltdown 1 | . . . . . 1 . . . . . . . . . . . . . . . . Destroy 21 | . 1 1 . . . . . . 10 . 6 3 . . . . . . . . . Corrupt 1 | . . . . . . . . 1 . . . . . . . . . . . . . Detonate 1 | . . . . . . . . . . . . . . . . . . . . . 1 Melee Attacks . | . . . . . . . . . . . . . . . . . . . . . . Impact . | . . . . . . . . . . . . . . . . . . . . . . Slashing . | . . . . . . . . . . . . . . . . . . . . . . Piercing . | . . . . . . . . . . . . . . . . . . . . . . Sneak Attacks . | . . . . . . . . . . . . . . . . . . . . . . Combat Hostiles . | . . . . . . . . . . . . . . . . . . . . . . Follow-up Attacks . | . . . . . . . . . . . . . . . . . . . . . . Damage Inflicted 34687 | 181 547 124 287 1445 229 1334 4742 712 1241 441 657 598 270 926 919 . 2140 3095 1759 1351 11689 Guns 2999 | 181 543 68 128 963 . . 403 . 188 . 153 70 . . . . . . . . 302 Cannons 23262 | . . 56 140 459 229 1221 1836 459 815 441 504 528 270 863 897 . 460 3095 1759 1351 7879 Explosions 8136 | . . . . . . . 2503 253 238 . . . . . . . 1680 . . . 3462 Melee . | . . . . . . . . . . . . . . . . . . . . . . Ramming 290 | . 4 . 19 23 . 113 . . . . . . . 63 22 . . . . . 46 Kinetic 3374 | 82 237 45 128 963 . . . . 416 . 153 70 . . . . . . . 1280 . Thermal 19873 | 99 306 23 140 459 229 1221 1713 . 587 441 504 528 270 863 897 . 460 3095 1759 71 6208 Explosive 7971 | . . . . . . . 2503 253 238 . . . . . . . 1680 . . . 3297 Electromagnetic 2877 | . . 56 . . . . 526 459 . . . . . . . . . . . . 1836 Impact . | . . . . . . . . . . . . . . . . . . . . . . Slashing . | . . . . . . . . . . . . . . . . . . . . . . Piercing . | . . . . . . . . . . . . . . . . . . . . . . Entropic 302 | . . . . . . . . . . . . . . . . . . . . . 302 Highest Corruption 25 | . 2 2 . 4 4 4 8 8 3 3 3 1 8 10 10 10 10 1 . 1 25 Average Corruption 4 | . 1 2 . 3 4 4 6 3 3 3 3 1 6 9 10 10 1 1 . 1 8 Corruption Purged 5 | . . . . . . . . 5 . . . . . . . . . . . . . Corruption Blocked . | . . . . . . . . . . . . . . . . . . . . . . Effects 318 | . 18 20 . 9 4 44 27 30 27 5 8 2 4 19 19 13 3 11 . 3 52 Message Errors 59 | . 1 2 . 1 1 9 3 7 2 1 2 . 1 4 2 3 1 2 . 2 15 Matter Fused 85 | . 4 6 . 4 1 8 8 10 10 2 3 . 1 1 6 4 1 5 . . 11 Heat Flow Errors 33 | . 2 1 . . . 2 6 1 6 . 1 1 1 5 2 . . . . . 5 Energy Discharges 45 | . 3 4 . . 1 4 3 8 2 2 1 . . 1 3 3 . 2 . . 8 Parts Rejected 1 | . . . . . . . 1 . . . . . . . . . . . . . . Parts Fused 4 | . . 1 . . . . . . 1 . . . . 1 . . . . . . 1 Data Loss (minor) 42 | . 4 3 . 2 . 7 2 2 1 . . 1 . 7 5 1 1 1 . . 5 Data Loss (major) 17 | . 3 1 . . . 6 . 2 3 . . . . . . 1 . . . 1 . Misfires 13 | . 1 1 . 1 1 5 2 . . . 1 . . . . 1 . . . . . Alerts 7 | . . . . 1 . 3 . . 1 . . . . . 1 . . . . . 1 Misdirections 5 | . . . . . . . . . . . . . . . . . . . . . 5 Weapon Failures 7 | . . 1 . . . . 2 . 1 . . . 1 . . . . 1 . . 1 Overload Shots 1 | . . . . . . . 1 . . . . . . . . . . . . . . Effects 1 | . . . . . . . 1 . . . . . . . . . . . . . . Short Circuit 1 | . . . . . . . 1 . . . . . . . . . . . . . . Overflow Damage 3133 | . . . 19 5 12 48 52 122 87 93 57 15 . 44 141 . 100 465 453 298 1122 Projectiles 2718 | . . . 19 5 12 43 9 122 87 93 57 15 . 44 123 . 89 465 453 298 784 Explosions 392 | . . . . . . . 43 . . . . . . . . . 11 . . . 338 Melee 23 | . . . . . . 5 . . . . . . . . 18 . . . . . . Knockbacks 5 | . 1 . . . . . . . . . . . . 1 . . . . . 3 . Impact 2 | . 1 . . . . . . . . . . . . 1 . . . . . . . Kinetic 3 | . . . . . . . . . . . . . . . . . . . . 3 . Secondary . | . . . . . . . . . . . . . . . . . . . . . . Self-Inflicted Damage 1600 | . . . . . . 2 188 . . . . . . . 11 . 54 . . . 1345 Shots 34 | . . . . . . . 7 . . . . . . . . . 1 . . . 26 Rammed 20 | . . . 3 2 . 9 . . . . . . . 4 1 . . . . . 1 Targets Rammed 23 | . 1 . 3 2 . 10 . . . . . . . 5 1 . . . . . 1 Kicked 1 | . 1 . . . . . . . . . . . . . . . . . . . . Crushed 2 | . . . . . . 1 . . . . . . . 1 . . . . . . . Highest Temperature 776 | 80 254 243 194 411 225 255 337 319 456 471 386 87 29 26 . . . 368 436 100 776 Average Temperature 97 | 43 56 99 71 97 47 101 99 47 151 180 140 26 29 26 . . . 136 108 39 79 Received Heat Transfer 3906 | . 102 316 81 381 51 90 770 . 222 . 75 15 . 27 73 . . 40 150 5 1508 Effects 9 | . . 1 . . . . 1 . 2 1 1 . . . . . . . 1 . 2 Shutdowns 2 | . . . . . . . . . . 1 1 . . . . . . . . . . Energy Bleed 2 | . . . . . . . 1 . 1 . . . . . . . . . . . . Interference 1 | . . 1 . . . . . . . . . . . . . . . . . . . Short Circuit 1 | . . . . . . . . . 1 . . . . . . . . . . . . Damage (minor) 2 | . . . . . . . . . . . . . . . . . . . 1 . 1 Damage (core) 1 | . . . . . . . . . . . . . . . . . . . . . 1 Siege Activations . | . . . . . . . . . . . . . . . . . . . . . . Martial Activations . | . . . . . . . . . . . . . . . . . . . . . . Shielding Activations . | . . . . . . . . . . . . . . . . . . . . . . Robots Disrupted . | . . . . . . . . . . . . . . . . . . . . . . Combat Hostiles . | . . . . . . . . . . . . . . . . . . . . . . Robots Corrupted 10 | . . . . . . 1 2 1 . . . . . . . . . . . . 6 Combat Hostiles 9 | . . . . . . . 2 1 . . . . . . . . . . . . 6 Parts Fried 28 | . . 1 . . . . 4 5 . . . . . . . . 3 . . . 15 Impact Corruptions 2 | . . . . . . 1 . . . . . . . . 1 . . . . . . Robots Melted 2 | . . . . . 1 . 1 . . . . . . . . . . . . . . Combat Hostiles 2 | . . . . . 1 . 1 . . . . . . . . . . . . . . Parts Melted 22 | . 2 . . . 6 3 7 . . . . . . 1 . . . 1 1 . 1 Heat Transferred 12227 | 225 700 25 185 718 385 1806 2186 . 814 407 518 407 222 407 333 . 185 999 518 37 1150 Parts Sabotaged . | . . . . . . . . . . . . . . . . . . . . . . Parts Stolen . | . . . . . . . . . . . . . . . . . . . . . . Parts Stripped . | . . . . . . . . . . . . . . . . . . . . . . Power Chain Reactions . | . . . . . . . . . . . . . . . . . . . . . . Alert | -11 -10 -10 -8 -7 -7 -7 -5 -5 -5 -5 -4 -4 -4 -4 -4 -4 -4 -3 -3 -3 -3 ------- Run | Yrd Mat Sub Mat Fac Sto Rec Fac Upp Upp Zhi Pro Fac Was Fac Upp Upp War Pro Res Qua Frg Maximum Alert Level 4 | . . . . . . . 3 . . . . 3 1 . . . . . . . 4 Low Security (%) 74 | 100 100 . 100 100 100 100 . . . . . . . 100 . . . . 100 100 39 Level 1 1 | . . . . . . . . . . . . . 100 . . . . . . . 6 Level 2 11 | . . . . . . . 71 . . . . . . . . . . . . . 17 Level 3 10 | . . . . . . . 27 . . . . 100 . . . . . . . . 22 Level 4 2 | . . . . . . . . . . . . . . . . . . . . . 14 Level 5 . | . . . . . . . . . . . . . . . . . . . . . . High Security . | . . . . . . . . . . . . . . . . . . . . . . Max Security . | . . . . . . . . . . . . . . . . . . . . . . Peak Influence 1364 | 10 160 . 66 85 129 120 982 . . . . 910 293 199 . . . . 195 175 1364 Initial 854 | . . . . . 16 42 600 . . . . 854 293 177 . . . . 105 67 72 Average 227 | 2 52 . 15 18 27 26 675 . . . . 843 275 146 . . . . 104 117 501 Influence Increases 8604 | 20 428 . 171 347 176 424 1655 100 180 15 315 1061 . 149 60 . 344 413 423 300 2023 Destroy 0b10 Robot/C 3680 | . 220 . 100 260 40 80 600 80 100 . 180 120 . 40 60 . 260 300 180 60 1000 Destroy 0b10 Robot/NC 370 | 20 15 . 10 5 . 75 40 10 . 15 5 15 . 15 . . 10 5 55 20 55 Destroy Leader 494 | . 46 . 40 50 20 . 112 10 20 . 10 24 . 22 . . . 10 34 14 82 Allied During Kill 207 | . . . . . . . . . . . . . . . . . 74 98 35 . . Successful Hack 277 | . 12 . 19 . . 36 . . . . . 5 . 12 . . . . 45 75 73 Select Force Hacks 270 | . 60 . . . . 210 . . . . . . . . . . . . . . . Disable Machine 390 | . . . . 15 45 . 60 . . . . 30 . 15 . . . . 15 45 165 Anti-Garrison Action 200 | . . . . . . . . . . . . . . . . . . . . . 200 Destroy Structure 646 | . . . 2 2 11 23 108 . . . . 12 . 30 . . . . 44 26 388 Advance Influence 1350 | . . . . . . . 600 . . . . 750 . . . . . . . . . Partial Spotted 90 | . . . . 15 . . 15 . . . . 30 . . . . . . . . 30 Lose Combat Pursuer 630 | . 75 . . . 60 . 120 . 60 . 120 75 . 15 . . . . 15 60 30 Influence Decreases 7283 | 20 428 . 171 311 103 530 713 877 348 15 149 388 586 314 148 . 170 431 459 291 831 Entered New Map 1527 | . . . . . 20 67 3 351 33 . . 62 546 76 34 . . 174 51 53 57 Time Decay 4729 | 20 428 . 161 254 83 463 490 526 285 15 139 206 20 238 104 . 90 157 278 238 534 Search Patrol Dispatched 200 | . . . . . . . 100 . . . . 100 . . . . . . . . . Lost Part 507 | . . . 10 57 . . 120 . 30 . 10 20 . . 10 . . . 10 . 240 Lost Ally 320 | . . . . . . . . . . . . . 20 . . . 80 100 120 . . Squads Dispatched 44 | . 2 . 5 9 1 . 5 . . . . 3 . 1 . . . . 6 3 9 Investigation 10 | . 2 . 2 1 . . 1 . . . . . . . . . . . 2 . 2 Extermination 12 | . . . . 2 . . 1 . . . . 2 . 1 . . . . 2 1 3 Reinforcement 12 | . . . 2 3 1 . . . . . . 1 . . . . . . 2 2 1 Assault 6 | . . . . . . . 3 . . . . . . . . . . . . . 3 Garrison 4 | . . . 1 3 . . . . . . . . . . . . . . . . . Intercept . | . . . . . . . . . . . . . . . . . . . . . . Searches Triggered 2 | . . . . . . . 1 . . . . 1 . . . . . . . . . Construction Impeded 2 | . . . 1 . 1 . . . . . . . . . . . . . . . . Haulers Reinforced 1 | . . . . . . . . . . . . . . . . . . . 1 . . Active Scanning Responses . | . . . . . . . . . . . . . . . . . . . . . . Cargo Convoy Interrupts . | . . . . . . . . . . . . . . . . . . . . . . Stealth | -11 -10 -10 -8 -7 -7 -7 -5 -5 -5 -5 -4 -4 -4 -4 -4 -4 -4 -3 -3 -3 -3 --------- Run | Yrd Mat Sub Mat Fac Sto Rec Fac Upp Upp Zhi Pro Fac Was Fac Upp Upp War Pro Res Qua Frg Distress Signals 13 | . 1 . 3 . . 3 1 . . . 1 . . 1 . . . . 3 . . Communications Jammed 33 | . . . . . . . . . . . 5 17 . 2 . . . 1 2 . 6 Distress Signals 28 | . . . . . . . . . . . . 17 . 2 . . . 1 2 . 6 Times Spotted 323 | . 25 2 6 14 6 4 44 3 13 . 26 20 4 10 3 . 38 15 11 11 68 Peak Tracking Total 15 | . 3 1 3 4 5 2 9 4 3 . 5 5 4 4 3 . 15 5 5 3 9 Tactical Retreats 31 | . 5 . . . 2 . 5 . 4 . 6 3 . 1 . . . . 1 2 2 Traps | -11 -10 -10 -8 -7 -7 -7 -5 -5 -5 -5 -4 -4 -4 -4 -4 -4 -4 -3 -3 -3 -3 ------- Run | Yrd Mat Sub Mat Fac Sto Rec Fac Upp Upp Zhi Pro Fac Was Fac Upp Upp War Pro Res Qua Frg Traps Triggered 17 | . 4 1 1 1 . . . 1 . . . 1 . 2 . . . . 1 . 5 Indirectly . | . . . . . . . . . . . . . . . . . . . . . . Trap Hack Attempts . | . . . . . . . . . . . . . . . . . . . . . . Triggered . | . . . . . . . . . . . . . . . . . . . . . . Disarmed . | . . . . . . . . . . . . . . . . . . . . . . Reprogrammed . | . . . . . . . . . . . . . . . . . . . . . . Reused . | . . . . . . . . . . . . . . . . . . . . . . Traps Extracted . | . . . . . . . . . . . . . . . . . . . . . . Installed . | . . . . . . . . . . . . . . . . . . . . . . Triggered . | . . . . . . . . . . . . . . . . . . . . . . Machines | -11 -10 -10 -8 -7 -7 -7 -5 -5 -5 -5 -4 -4 -4 -4 -4 -4 -4 -3 -3 -3 -3 ---------- Run | Yrd Mat Sub Mat Fac Sto Rec Fac Upp Upp Zhi Pro Fac Was Fac Upp Upp War Pro Res Qua Frg Machines Disabled 33 | . . . . 1 3 . 4 . . 1 . 2 . 1 . . 2 1 1 3 14 Max in Single Turn 2 | . . . . 1 1 . 1 . . 1 . 1 . 1 . . 1 1 . 1 2 Garrison Access 2 | . . . . . . . 1 . . . . . . . . . . . . . 1 Machines Repaired . | . . . . . . . . . . . . . . . . . . . . . . Machines Dismantled . | . . . . . . . . . . . . . . . . . . . . . . Machines Sabotaged . | . . . . . . . . . . . . . . . . . . . . . . Overloaded Fab Kills . | . . . . . . . . . . . . . . . . . . . . . . Hacking | -11 -10 -10 -8 -7 -7 -7 -5 -5 -5 -5 -4 -4 -4 -4 -4 -4 -4 -3 -3 -3 -3 --------- Run | Yrd Mat Sub Mat Fac Sto Rec Fac Upp Upp Zhi Pro Fac Was Fac Upp Upp War Pro Res Qua Frg Machines Accessed 74 | . 8 1 2 3 . 14 5 1 . 4 . 7 . 6 . 1 1 2 5 8 6 Terminals 46 | . 6 . 2 3 . 6 3 . . . . 5 . 3 . . . 1 4 8 5 Fabricators 7 | . . . . . . . 1 . . . . 1 . 3 . . . 1 1 . . Repair Stations . | . . . . . . . . . . . . . . . . . . . . . . Recycling Units 9 | . 2 . . . . 7 . . . . . . . . . . . . . . . Scanalyzers . | . . . . . . . . . . . . . . . . . . . . . . Garrison Access 3 | . . . . . . . 1 . . . . 1 . . . . . . . . 1 Total Hacks 166 | . 17 4 5 6 . 35 14 1 . 17 . 9 . 13 . 1 1 2 11 17 13 Successful 80 | . 10 4 4 1 . 17 4 1 . 17 . 1 . 3 . 1 1 2 2 5 7 Failed 86 | . 7 . 1 5 . 18 10 . . . . 8 . 10 . . . . 9 12 6 Catastrophic 18 | . 3 . . 2 . 3 1 . . . . 3 . 2 . . . . 2 2 . Database Lockouts . | . . . . . . . . . . . . . . . . . . . . . . Manual 67 | . 16 . 1 1 1 13 9 . . . . 3 . 8 . . . . 3 4 8 Terminals 106 | . 15 . 5 6 . 21 5 . . . . 7 . 9 . . . 1 9 17 11 Fabricators 15 | . . . . . . . 7 . . . . 1 . 4 . . . 1 2 . . Repair Stations . | . . . . . . . . . . . . . . . . . . . . . . Recycling Units 14 | . 2 . . . . 12 . . . . . . . . . . . . . . . Scanalyzers . | . . . . . . . . . . . . . . . . . . . . . . Garrison Access 5 | . . . . . . . 2 . . . . 1 . . . . . . . . 2 Terminal Hacks 46 | . 1 4 3 1 . 9 . 1 . 17 . . . 1 . 1 1 1 1 3 2 Record 10 | . 1 4 . . . . . . . 5 . . . . . . . . . . . Part Schematic 7 | . . . . . . 3 . . . 4 . . . . . . . . . . . Robot Analysis 4 | . . . . . . . . . . 4 . . . . . . . . . . . Prototype ID Bank 9 | . . . 1 . . 2 . . . 4 . . . . . . . . . 2 . Open Door 4 | . . . . . . . . 1 . . . . . . . 1 1 1 . . . Branch Access Points 4 | . . . 1 1 . . . . . . . . . 1 . . . . 1 . . Terminal Index 1 | . . . . . . . . . . . . . . . . . . . . 1 . Alert Level 2 | . . . . . . 2 . . . . . . . . . . . . . . . Zone Layout 2 | . . . 1 . . . . . . . . . . . . . . . . . 1 Proto ID Catalog 1 | . . . . . . . . . . . . . . . . . . . . . 1 Release Object 2 | . . . . . . 2 . . . . . . . . . . . . . . . Fabricator Hacks 4 | . . . . . . . 1 . . . . 1 . 1 . . . 1 . . . Network Status 2 | . . . . . . . 1 . . . . . . 1 . . . . . . . Build 2 | . . . . . . . . . . . . 1 . . . . . 1 . . . Repair Station Hacks . | . . . . . . . . . . . . . . . . . . . . . . Recycling Unit Hacks 1 | . . . . . . 1 . . . . . . . . . . . . . . . Retrieve Components 1 | . . . . . . 1 . . . . . . . . . . . . . . . Scanalyzer . | . . . . . . . . . . . . . . . . . . . . . . Garrison Access Hacks 1 | . . . . . . . 1 . . . . . . . . . . . . . . Seal Access 1 | . . . . . . . 1 . . . . . . . . . . . . . . Unauthorized Hacks 28 | . 9 . 1 . . 7 2 . . . . . . 1 . . . . 1 2 5 Terminals 15 | . 7 . 1 . . . . . . . . . . 1 . . . . . 2 4 Track 4 | . . . . . . . . . . . . . . . . . . . . 1 3 Assimilate 1 | . . . . . . . . . . . . . . . . . . . . 1 . Botnet 2 | . 2 . . . . . . . . . . . . . . . . . . . . Operators 2 | . . . . . . . . . . . . . . 1 . . . . . . 1 Skim 6 | . 5 . 1 . . . . . . . . . . . . . . . . . . Fabricators 3 | . . . . . . . 2 . . . . . . . . . . . 1 . . Liberate 2 | . . . . . . . 1 . . . . . . . . . . . 1 . . Haulers 1 | . . . . . . . 1 . . . . . . . . . . . . . . Repair Stations . | . . . . . . . . . . . . . . . . . . . . . . Recycling Units 9 | . 2 . . . . 7 . . . . . . . . . . . . . . . Tunnel 9 | . 2 . . . . 7 . . . . . . . . . . . . . . . Scanalyzers . | . . . . . . . . . . . . . . . . . . . . . . Garrison Access 1 | . . . . . . . . . . . . . . . . . . . . . 1 Jam 1 | . . . . . . . . . . . . . . . . . . . . . 1 Data Cores Recovered 3 | . . . . . . . . . . . . . . 1 . . . . 1 . 1 Used 1 | . . . . . . . . . . . . . . . . . . . 1 . . Hacking Detections 52 | . 6 . 1 2 1 8 5 . . . . 6 . 5 . . . . 5 8 5 Full Trace Events 10 | . . . . 1 . 5 1 . . . . . . . . . . . 2 . 1 Feedback Events 2 | . . . . 1 . . . . . . . . . . . . . . . . 1 Corruption 2 | . . . . 1 . . . . . . . . . . . . . . . . 1 Feedback Blocked . | . . . . . . . . . . . . . . . . . . . . . . Robot Schematics Acquired . | . . . . . . . . . . . . . . . . . . . . . . Robots Built . | . . . . . . . . . . . . . . . . . . . . . . Authchips . | . . . . . . . . . . . . . . . . . . . . . . Time . | . . . . . . . . . . . . . . . . . . . . . . Total Robot Build Rating . | . . . . . . . . . . . . . . . . . . . . . . Part Schematics Acquired 7 | . . . . . . 3 . . . 4 . . . . . . . . . . . Parts Built 2 | . . . . . . . . . . . . 1 . . . . . 1 . . . Authchips . | . . . . . . . . . . . . . . . . . . . . . . Time 208 | . . . . . . . . . . . . 139 . . . . . 69 . . . Total Part Build Rating 18 | . . . . . . . . . . . . 9 . . . . . 9 . . . Part Studies Acquired . | . . . . . . . . . . . . . . . . . . . . . . Parts Repaired . | . . . . . . . . . . . . . . . . . . . . . . Time . | . . . . . . . . . . . . . . . . . . . . . . Parts Recycled . | . . . . . . . . . . . . . . . . . . . . . . Recycled Matter . | . . . . . . . . . . . . . . . . . . . . . . Retrieved Matter . | . . . . . . . . . . . . . . . . . . . . . . Retrieved Components 10 | . . . . . . 10 . . . . . . . . . . . . . . . Parts Scanalyzed . | . . . . . . . . . . . . . . . . . . . . . . Part Schematics Acquired . | . . . . . . . . . . . . . . . . . . . . . . Parts Damaged . | . . . . . . . . . . . . . . . . . . . . . . Bothacking | -11 -10 -10 -8 -7 -7 -7 -5 -5 -5 -5 -4 -4 -4 -4 -4 -4 -4 -3 -3 -3 -3 ------------ Run | Yrd Mat Sub Mat Fac Sto Rec Fac Upp Upp Zhi Pro Fac Was Fac Upp Upp War Pro Res Qua Frg Used RIF Installer . | . . . . . . . . . . . . . . . . . . . . . . Robots Hacked . | . . . . . . . . . . . . . . . . . . . . . . Non-combat . | . . . . . . . . . . . . . . . . . . . . . . Combat . | . . . . . . . . . . . . . . . . . . . . . . Robot Hacks Applied . | . . . . . . . . . . . . . . . . . . . . . . Relay Couplers Released 2 | . . . . . . . . . . . . . . . . . . . . . 2 Machine Destruction 2 | . . . . . . . . . . . . . . . . . . . . . 2 Fabnet Peak Effective % . | . . . . . . . . . . . . . . . . . . . . . . Robots Rewired 16 | . . . . . . . . . . . . . . . . . 5 11 . . . Allies Hacked 1 | . . . . . . . . . . . . . . . . . . . 1 . . Hacks Repelled . | . . . . . . . . . . . . . . . . . . . . . . Allies | -11 -10 -10 -8 -7 -7 -7 -5 -5 -5 -5 -4 -4 -4 -4 -4 -4 -4 -3 -3 -3 -3 -------- Run | Yrd Mat Sub Mat Fac Sto Rec Fac Upp Upp Zhi Pro Fac Was Fac Upp Upp War Pro Res Qua Frg Total Allies 18 | . . . . . . . . . . . . . 1 . . . 5 11 . 1 . Largest Group 6 | . . . . . . . . . . . . . 1 . . . 5 6 6 1 . Highest-Rated Group 286 | . . . . . . . . . . . . . 46 . . . 286 280 280 26 . Highest-Rated Ally 68 | . . . . . . . . . . . . . 46 . . . 68 56 56 26 . Total Orders 12 | . . . . . . . . . . . . . . . . . 3 9 . . . STAY 9 | . . . . . . . . . . . . . . . . . 2 7 . . . FOLLOW 3 | . . . . . . . . . . . . . . . . . 1 2 . . . Ally Attacks 116 | . . . . . . . . . . . . . 5 . . . 16 55 40 . . Total Damage 3547 | . . . . . . . . . . . . . 105 . . . 934 812 1696 . . Kills 21 | . . . . . . . . . . . . . . . . . 6 6 9 . . Allies Corrupted 2 | . . . . . . . . . . . . . . . . . . . 2 . . Allies Melted 1 | . . . . . . . . . . . . . . . . . . . 1 . . Intel | -11 -10 -10 -8 -7 -7 -7 -5 -5 -5 -5 -4 -4 -4 -4 -4 -4 -4 -3 -3 -3 -3 ------- Run | Yrd Mat Sub Mat Fac Sto Rec Fac Upp Upp Zhi Pro Fac Was Fac Upp Upp War Pro Res Qua Frg Active Infowar (turns) 15349 | 10 1574 893 553 530 . . 783 1474 1550 314 542 426 53 496 480 393 1104 1388 524 459 1803 Sensors 5812 | . . . . . . . . . . . . 56 53 493 480 393 1104 1142 520 418 1153 IFF 1719 | . . . . . . . . 1474 245 . . . . . . . . . . . . Seismic 4343 | 10 1574 893 553 530 . . 783 . . . . . . . . . . . . . . Jamming 6940 | . . . . . . . . 578 1550 314 542 426 53 487 . . . 246 488 455 1801 Robot Analysis Total 4 | . . . . . . . . . . 4 . . . . . . . . . . . Derelict Logs Recovered 7 | . . . . . . . . . 3 . 1 . . . 2 1 . . . . . Drone Launches . | . . . . . . . . . . . . . . . . . . . . . . Drone Recoveries . | . . . . . . . . . . . . . . . . . . . . . . Exploration | -11 -10 -10 -8 -7 -7 -7 -5 -5 -5 -5 -4 -4 -4 -4 -4 -4 -4 -3 -3 -3 -3 ------------- Run | Yrd Mat Sub Mat Fac Sto Rec Fac Upp Upp Zhi Pro Fac Was Fac Upp Upp War Pro Res Qua Frg Turns Passed 19690 | 124 1769 990 553 1218 299 2046 1294 1474 1550 314 542 426 53 507 519 393 1123 1512 617 513 1854 Spaces Moved 13674 | 44 551 550 285 636 137 992 496 1036 1319 153 540 626 91 453 705 526 1060 886 606 522 1460 Core 21 | 14 . . . . . . . . . . . . . . . . . . . . 7 Treads 4011 | . 374 550 285 636 137 889 393 . 519 153 14 . . 61 . . . . . . . Legs 2955 | 30 177 . . . . . 10 994 800 . 267 . . 66 . . 611 . . . . Wheels 113 | . . . . . . 5 66 42 . . . . . . . . . . . . . Hover 5276 | . . . . . . 98 27 . . . . . . 47 705 526 449 886 606 522 1410 Flight 1298 | . . . . . . . . . . . 259 626 91 279 . . . . . . 43 Fastest Speed 38 | 50 120 160 160 162 162 131 142 97 97 97 55 41 41 41 68 68 38 48 65 65 50 Average Speed 98 | 138 147 160 160 162 162 163 187 121 97 97 76 53 41 71 68 68 49 64 71 69 64 Slowest Speed 255 | 200 160 160 163 165 243 245 255 167 97 97 97 55 41 129 68 68 68 88 158 158 158 Overloaded Moves . | . . . . . . . . . . . . . . . . . . . . . . Propulsion Burnouts . | . . . . . . . . . . . . . . . . . . . . . . Robots Hopped 11 | . . . . . . . . . . . . 8 . 3 . . . . . . . Potential Cave-ins 5 | . . . . . 2 . . . . . . . . . . . . 1 . . 2 Cave-ins Triggered . | . . . . . . . . . . . . . . . . . . . . . . Teleports 1 | . . . . . . . . . . . . . . . . . . . . . 1 Exploration Rate (%) 53 | 4 94 28 32 18 28 99 17 95 85 60 72 25 62 14 85 96 87 78 17 51 35 Regions Visited 21 Branch Regions 13 Pre-discovered Areas 16 | . 3 . . . . 7 . . 1 3 . . . . 1 1 . . . . . Known Exits Taken 12 | . 1 . 1 1 1 1 . . . . . . . 1 1 1 1 1 1 1 . Unknown Exits Taken 7 | 1 . 1 . . . . 1 1 1 1 1 . . . . . . . . . . Scrap Searched 20 | . . 4 . . . . . 3 4 . 2 . . . 1 5 . 1 . . . Spaces Dug 134 | . . . . . 7 2 18 1 . . 1 4 . 7 1 8 18 32 14 6 15 Terrain Destroyed 519 | . . . 2 1 16 23 58 27 32 . 26 6 . 21 4 15 68 79 21 13 107 Melee . | . . . . . . . . . . . . . . . . . . . . . . Projectile 338 | . . . 2 1 16 23 13 2 8 . 25 6 . 21 4 15 22 79 21 13 67 AOE 180 | . . . . . . . 45 25 24 . . . . . . . 46 . . . 40 Terrain Rammed . | . . . . . . . . . . . . . . . . . . . . . . Walls Destroyed . | . . . . . . . . . . . . . . . . . . . . . . Machines Disabled . | . . . . . . . . . . . . . . . . . . . . . . Actions | -11 -10 -10 -8 -7 -7 -7 -5 -5 -5 -5 -4 -4 -4 -4 -4 -4 -4 -3 -3 -3 -3 --------- Run | Yrd Mat Sub Mat Fac Sto Rec Fac Upp Upp Zhi Pro Fac Was Fac Upp Upp War Pro Res Qua Frg Total 18634 | 73 1426 632 363 738 189 1362 693 1216 1492 309 608 693 99 599 727 547 1614 1646 756 648 2204 Wait 3266 | 1 786 50 42 22 2 292 39 135 59 135 20 24 2 87 1 4 444 505 61 69 486 Move 13635 | 43 550 549 284 635 136 991 495 1035 1318 152 539 613 90 446 704 525 1059 885 605 521 1460 Hop 8 | . . . . . . . . . . . . 5 . 3 . . . . . . . Pick Up 123 | 5 13 1 11 13 8 . 9 4 6 3 2 7 . 3 1 1 3 2 13 4 14 Fast Attach 79 | 7 6 2 1 8 6 1 3 4 4 2 1 5 . 3 . 1 7 . 8 1 9 Attach 66 | . 1 . 6 7 . 1 16 2 2 1 . 2 . 3 1 . 3 . 5 4 12 Detach 36 | . . . . . 1 6 7 1 . 1 . 3 . 1 . . 4 . 3 3 6 Swap 92 | . 11 9 2 10 2 1 4 . 1 . . 5 . 5 4 . 2 10 10 7 9 Drop 143 | . 12 3 6 3 12 15 6 2 10 2 2 8 . 8 . 2 10 4 16 11 11 Fire 962 | 17 46 18 8 38 22 45 114 33 92 13 44 21 7 35 15 14 47 114 35 28 156 Melee . | . . . . . . . . . . . . . . . . . . . . . . Ram 4 | . . . . . . 1 . . . . . . . . 1 . . . . . 2 Kick 1 | . 1 . . . . . . . . . . . . . . . . . . . . Crush 19 | . . . 3 2 . 9 . . . . . . . 5 . . . . . . . Escape Stasis 39 | . . . . . . . . . . . . . . . . . . . . . 39 Rewire 161 | . . . . . . . . . . . . . . . . . 35 126 . . . Trap . | . . . . . . . . . . . . . . . . . . . . . . Miscellaneous . | . . . . . . . . . . . . . . . . . . . . . . Route ------- -11/Scrapyard -10/Materials (discovered 5 exits: *Mat x3 / [*Min] / *Sub) -10/Subcaves -8/Materials (discovered 3 exits: *Fac x3) -7/Factory (discovered 4 exits: *Sto x2 / Low x2) -7/Storage -7/Recycling -5/Factory -5/Upper Caves -5/Upper Caves (discovered 2 exits: *Fac / *Zhi) -5/Zhirov -4/Proximity Caves -4/Factory -4/Waste -4/Factory (discovered 4 exits: *Res x2 / *Upp x2) -4/Upper Caves -4/Upper Caves (discovered 2 exits: *Res / *War) -4/Warlord -3/Proximity Caves -3/Research (discovered 4 exits: [*Res] / Arm / *Qua x2) -3/Quarantine (discovered 2 exits: *Sec / *Frg) -3/Protoforge History --------- Turn | Location | Event 20 | -11/Scrapyard | Discovered new exit (range 15) 125 | -11/Scrapyard | Entered Materials 307 | -10/Materials | Build established: Mutant 311 | -10/Materials | Discovered new exit (range 7) 673 | -10/Materials | Discovered new exit (range 9) 840 | -10/Materials | Learned 2 Storage zone layouts 866 | -10/Materials | Discovered new exit (range 7) 883 | -10/Materials | Learned location of 1 exit from Recycling 915 | -10/Materials | Learned Storage emergency access door positions 939 | -10/Materials | Identified exit to Subcaves 939 | -10/Materials | Identified exit to Materials 955 | -10/Materials | Learned location of 3 exits from Materials 966 | -10/Materials | Learned location of 2 exits from Materials 1018 | -10/Materials | Learned Storage stockpile data 1894 | -10/Materials | Entered Subcaves 1899 | -10/Subcaves | A swath of the cavern ceiling suddenly collapsed 2051 | -10/Subcaves | A swath of the cavern ceiling suddenly collapsed 2149 | -10/Subcaves | Disturbed a concealed Subdweller 2223 | -10/Subcaves | Disturbed a concealed Subdweller 2376 | -10/Subcaves | Discovered new exit (range 11) 2473 | -10/Subcaves | Visited Clippyterm 2478 | -10/Subcaves | Learned Factory garrison access intel 2884 | -10/Subcaves | Entered Materials 2884 | -8/Materials | Evolved 4 slots: Propulsion x1, Utility x2, Weapon x1 2885 | -8/Materials | Identified exit to Factory 3048 | -8/Materials | Garrison activated, responded to threat 3167 | -8/Materials | Met 7R-MNS 3277 | -8/Materials | Build established: Scavenger-Tank 3437 | -8/Materials | Entered Factory 3437 | -7/Factory | Evolved 2 slots: Propulsion x1, Utility x1 3438 | -7/Factory | Caught up to 7R-MNS 3438 | -7/Factory | Loaded intel: 4 garrison access locations 4070 | -7/Factory | Garrison activated, responded to threat 4129 | -7/Factory | Lost 7 parts (1p2n3u1w) 4461 | -7/Factory | Build established: Scavenger-Gunner 4630 | -7/Factory | Identified exit to Storage 4630 | -7/Factory | Identified exit to Lower Caves 4655 | -7/Factory | Entered Storage 4656 | -7/Storage | Identified exit to Recycling 4949 | -7/Storage | Used back door to open Recycling access 4954 | -7/Storage | Entered Recycling 4955 | -7/Recycling | Identified exit to Factory 6077 | -7/Recycling | Found Prototype Device 6077 | -7/Recycling | Identified Scrap Engine 6773 | -7/Recycling | Build established: Construct 7000 | -7/Recycling | Entered Factory 7000 | -5/Factory | Evolved 4 slots: Power x1, Propulsion x1, Utility x2 7300 | -5/Factory | Search patrols dispatched 7476 | -5/Factory | Lost 3 parts (1p1u1w) 7834 | -5/Factory | Lost 3 parts (1n2u) 7900 | -5/Factory | First assault squad dispatched 8105 | -5/Factory | Discovered new exit (range 15) 8294 | -5/Factory | Entered Upper Caves 8849 | -5/Upper Caves | Spotted B-75 Beast 9146 | -5/Upper Caves | Discovered new exit (range 3) 9768 | -5/Upper Caves | Entered another Upper Caves area 9797 | -5/Upper Caves | Learned Factory terminal intel 9894 | -5/Upper Caves | Discovered new exit (range 6) 10328 | -5/Upper Caves | Encountered a Warlord checkpoint 10428 | -5/Upper Caves | Discovered new exit (range 11) 10570 | -5/Upper Caves | Attracted the attention of an 0b10 checkpoint 11246 | -5/Upper Caves | Spotted B-75 Beast 11318 | -5/Upper Caves | Entered Zhirov 11318 | -5/Zhirov | Discovered new exit (range 3) 11336 | -5/Zhirov | Met Zhirov 11354 | -5/Zhirov | Learned location of Command (-1) 11363 | -5/Zhirov | Zhirov requested help retrieving the SGEMP Prototype 11378 | -5/Zhirov | Found Alien Artifact 11378 | -5/Zhirov | Identified Integrated Reactor 11378 | -5/Zhirov | Installed Integrated Reactor, increased core energy generation (+10) 11390 | -5/Zhirov | Found Alien Artifact 11632 | -5/Zhirov | Entered Proximity Caves 11637 | -4/Proximity Caves | Spotter reported a threat 11639 | -4/Proximity Caves | Spotter reported a threat 11669 | -4/Proximity Caves | Build established: Derelict-Construct 11704 | -4/Proximity Caves | Spotter reported a threat 11998 | -4/Proximity Caves | Spotter reported a threat 12080 | -4/Proximity Caves | Spotter reported a threat 12089 | -4/Proximity Caves | Spotted B-86 Titan 12119 | -4/Proximity Caves | Attracted the attention of an 0b10 checkpoint 12157 | -4/Proximity Caves | Discovered new exit (range 16) 12174 | -4/Proximity Caves | Entered Factory 12174 | -4/Factory | Evolved 2 slots: Utility x2 12175 | -4/Factory | Loaded intel: 26 terminal locations 12424 | -4/Factory | Search patrols dispatched 12450 | -4/Factory | Found Quantum Capacitor 12487 | -4/Factory | Fabricated Centrium Leg? 12600 | -4/Factory | Sucked down chute 12600 | -4/Factory | Entered Waste 12601 | -4/Waste | Met a frightened Derelict 12607 | -4/Waste | Spotted C-40 Crusher 12615 | -4/Waste | EMP discharged 12618 | -4/Waste | Spotted C-40 Crusher 12623 | -4/Waste | Spotted C-40 Crusher 12627 | -4/Waste | Discovered new exit (range 16) 12628 | -4/Waste | Spotted C-40 Crusher 12637 | -4/Waste | Identified exit to Factory 12653 | -4/Waste | Entered Factory 12654 | -4/Factory | Build established: Construct 12721 | -4/Factory | Identified exit to Upper Caves 12743 | -4/Factory | Discovered new exit (range 7) 12861 | -4/Factory | System corruption reached 10% 12954 | -4/Factory | Discovered new exit (range 7) 13160 | -4/Factory | Entered Upper Caves 13167 | -4/Upper Caves | Attracted the attention of an 0b10 checkpoint 13298 | -4/Upper Caves | Identified exit to Upper Caves 13679 | -4/Upper Caves | Entered another Upper Caves area 13684 | -4/Upper Caves | Discovered new exit (range 15) 13699 | -4/Upper Caves | Identified exit to Research 13988 | -4/Upper Caves | Discovered new exit (range 4) 14007 | -4/Upper Caves | Identified exit to Warlord 14072 | -4/Upper Caves | Entered Warlord 14095 | -4/Warlord | System corruption cleaned by Quarantine Array 14216 | -4/Warlord | Found Prototype Device 14216 | -4/Warlord | Identified Exp. Focal Shield 14226 | -4/Warlord | Found Prototype Processor 14226 | -4/Warlord | Identified Exp. Targeting Computer 14479 | -4/Warlord | Warlord's base attacked by MAIN.C 14607 | -4/Warlord | Found Prototype Energy Gun 14607 | -4/Warlord | Identified Vortex Shotgun 14611 | -4/Warlord | Found Vortex Shotgun 14644 | -4/Warlord | Met Warlord 14687 | -4/Warlord | Build established: Commander-Construct 14826 | -4/Warlord | Warlord forces counterattacked 14881 | -4/Warlord | Spotted Executioner 14901 | -4/Warlord | Destroyed Executioner 14921 | -4/Warlord | Spotted Striker 14928 | -4/Warlord | P-70 Sage assimilated allied 7L-R0V(Y) 14943 | -4/Warlord | Destroyed Striker 15001 | -4/Warlord | Lost 28 allies 15017 | -4/Warlord | Discovered new exit (range 14) 15021 | -4/Warlord | Identified exit to Proximity Caves 15037 | -4/Warlord | Lost 3 allies 15154 | -4/Warlord | Warlord base infiltrated, sounded retreat 15195 | -4/Warlord | Entered Proximity Caves 15197 | -3/Proximity Caves | Attracted the attention of an 0b10 checkpoint 15490 | -3/Proximity Caves | Build established: Construct 16463 | -3/Proximity Caves | Discovered exit to Research (range 5) 16552 | -3/Proximity Caves | Lost 5 allies 16707 | -3/Proximity Caves | Fabricated Biometal Heavy Treads? 16707 | -3/Proximity Caves | Entered Research 16707 | -3/Research | Accompanied by 6 allies 16707 | -3/Research | Evolved 2 slots: Utility x2 16708 | -3/Research | Identified exit to Armory 16862 | -3/Research | Build established: Commander-Construct 17064 | -3/Research | Identified exit to Quarantine 17225 | -3/Research | Discovered new exit (range 16) 17283 | -3/Research | Spotted B-90 Cyclops 17324 | -3/Research | Entered Quarantine 17348 | -3/Quarantine | Build established: Construct 17617 | -3/Quarantine | Cryocooling Duct disabled 17632 | -3/Quarantine | Ambient heat levels rising (+20) 17632 | -3/Quarantine | Non-combat units ordered to evacuate 17661 | -3/Quarantine | Found Alien Artifact 17781 | -3/Quarantine | Spotted Fortress 17828 | -3/Quarantine | Discovered new exit (range 5) 17828 | -3/Quarantine | Discovered new exit (range 6) 17831 | -3/Quarantine | Identified exit to Section 7 17836 | -3/Quarantine | Identified exit to Protoforge 17837 | -3/Quarantine | Entered Protoforge 18064 | -3/Protoforge | Spotted Hotshot 18517 | -3/Protoforge | Superfortress began startup sequence 18769 | -3/Protoforge | Identified Transdimensional Reconstructor 18771 | -3/Protoforge | Found Prototype Device 18793 | -3/Protoforge | Found Cep. Deflector Sword 18796 | -3/Protoforge | Found Cep. Plasma Driver 18801 | -3/Protoforge | Spotted V100-q 18803 | -3/Protoforge | Warped through subspace 18837 | -3/Protoforge | Spotted Immortal 18838 | -3/Protoforge | Spotted Immortal 18844 | -3/Protoforge | Destroyed Immortal 18848 | -3/Protoforge | Spotted Decapitator 18848 | -3/Protoforge | Spotted Decapitator 18848 | -3/Protoforge | Spotted Decapitator 18848 | -3/Protoforge | Spotted Decapitator 18918 | -3/Protoforge | System corruption reached 10% 18970 | -3/Protoforge | Lost 3 parts (3u) 19005 | -3/Protoforge | Destroyed Immortal 19087 | -3/Protoforge | First assault squad dispatched 19120 | -3/Protoforge | Destroyed Decapitator 19122 | -3/Protoforge | Destroyed Decapitator 19124 | -3/Protoforge | Destroyed Decapitator 19198 | -3/Protoforge | Spotted V366-k 19208 | -3/Protoforge | Found Cep. Rapid Grenade Launcher 19442 | -3/Protoforge | Spotted Decapitator 19442 | -3/Protoforge | Spotted Decapitator 19442 | -3/Protoforge | Spotted Decapitator 19442 | -3/Protoforge | Spotted V599-j 19443 | -3/Protoforge | Spotted V469-k 19448 | -3/Protoforge | Destroyed Decapitator 19452 | -3/Protoforge | Forge Plexus network access discovered 19474 | -3/Protoforge | Found Cep. Network Penetrator 19497 | -3/Protoforge | Found Exp. Active Sensor Suite 19617 | -3/Protoforge | Spotted V067-x 19617 | -3/Protoforge | Spotted V529-t 19617 | -3/Protoforge | Spotted V414-j 19621 | -3/Protoforge | Spotted V063-l 19622 | -3/Protoforge | Found Cep. Chromion Battery 19624 | -3/Protoforge | Found Cep. Chromion Battery 19626 | -3/Protoforge | Found Cep. Antigrav Storage Unit 19628 | -3/Protoforge | Found Cep. Chromion Battery 19629 | -3/Protoforge | Found Cep. NT7 Matterbank 19631 | -3/Protoforge | Found Cep. NT7 Matterbank 19640 | -3/Protoforge | Scanned by Researcher 19648 | -3/Protoforge | Core integrity fell below 50% 19654 | -3/Protoforge | Destroyed V529-t 19663 | -3/Protoforge | Destroyed V063-l 19687 | -3/Protoforge | Core integrity fell below 20% 19691 | -3/Protoforge | Destroyed 10 combat bots 19692 | -3/Protoforge | Core destroyed Last Messages --------------- 19688_ Imp. Transmission Jammer destroyed. 19688_ System corrupted by crushing effect (+1). 19688_ System corrupted by crushing effect (+5). 19688_ V067-x follow-up attacks with Prototype Slashing Weapon. 19688_ Dropped Cep. Antigrav Storage Unit. 19690_ Railslug penetrates Reinforced Barrier. 19690_ Penetrated by HV Slug. 19690_ HV Slug penetrates Reinforced Barrier. 19690_ E-15 Imp suffers critical hit (Destroy). 19690_ E-15 Imp destroyed. 19690_ Penetrated by HV Slug. 19690_ HV Slug penetrates Reinforced Barrier. 19690_ HV Slug penetrates V067-x. 19690_ HV Slug penetrates Reinforced Barrier. 19690_ Critical hit (Meltdown: +850). 19691_ Overheating: Adv. Signal Interpreter damaged (-10). 19692_ Overheating: Core damaged (-221). Map ----- +----------------------------------------------------+ | #???????????????????# #????????????# #????????? | | #???????????????????# #????????????# ########## | | #???????????###?????# #???????????## ![ | | ##################### !#???????????## ! [ | | %##??????????##! ######### | | % #???????????# ###???#" | | %% #???????????# # #???#??? | | ######+++######## ^#####???????????# # #??????? | | #?# % #???# #???????????????# ###??????? | | ??# !% #???# #???????????????# #????????? | | ??# % "% ##??# #???????????????# #????????? | | ??# !" ##??#^ #???????????????# #????????? | | ??# " G"" #???#^ #???????????????# #????????? | | ??# % ##??# #???????????????# #????????? | | ??########### #?# %################# #????????? | | ?????????????##?# "% #????????? | | ????????????????# " %] #????????? | | ????????????????# g * !!! #????????? | | ????????????????######## l= !!!]########????????? | | ???????????????????????# l =!/!!#???????????????? | | ???????????????????????# V! #???????????????? | | ???????????????????????# #???????????????? | | ???????????????????????# #???????????????? | | ??????????????????##???## ##???????????????? | | ??????????????????# ##### n#????????????????? | | ????????????????####"#""#@ ###??????????????? | | ????????????????#"""" """"?????????????? | | ????????????????# """ """????????????? | | ####???######??## " ""????????????? | | """#???#""""#??#" T ""????????????? | | ///#####!!!!""### c ???????!!!!? | | ??????????? | | FFF ??????????? | | FFF ??????????? | | FFF ???????????? | | ???????????? | | ????????????? | | =##### ##""# ????????====? | | """#???#""""## ##"""""""""""""""""""?????????????? | | ####???##########""""""""""""""""????????????????? | | ????????????????#"""""""""""?????????????????????? | | ?????????????????#####???????????????????????????? | | ?????????????????????????????????????????????????? | | ?????????????????????????????????????????????????? | | ?????????????????????????????????????????????????? | | ?????????????????????????????????????????????????? | | ?????????????????????????????????????????????????? | | ?????????????????????????????????????????????????? | | ?????????????????????????????????????????????????? | | ?????????????????????????????????????????????????? | +----------------------------------------------------+ Best States ------------- Heat Dissipation 122 Energy Generation 63 Energy Capacity 1144 Matter Stores 300 Matter Capacity 300 Sight Range 16 Robot Scan Range 16 Terrain Scan Density 10 Jamming Range 14 Additional Mass Support 6 Base Temperature (-) 200 Armor Coverage 600 Resistance: TH 15 Weapon Cycling 25 Evasion (%) 67 Targeting Accuracy 12 Core Analysis 6 Recoil Reduction 5 Particle Charging 30 Offensive Hacking 26 Authchip Count 5 Item Schematics ----------------- Proton Cannon | -7/Recycling | Hacked Imp. System Shield | -7/Recycling | Hacked Energy Well | -7/Recycling | Hacked Imp. Arc Thrower | -5/Zhirov | Free Exp. Optical Array | -5/Zhirov | Free Exp. Heat Sink | -5/Zhirov | Free Assault Drone Bay | -5/Zhirov | Free Robot Schematics ------------------ None Fabricated ------------ Centrium Leg | x1 | -4/Factory | Preloaded Biometal Heavy Treads | x1 | -3/Proximity Caves | Preloaded Repaired ---------- Nothing Studied --------- None Alien Tech Used ----------------- Integrated Reactor Transdimensional Reconstructor Achievements -------------- Stay Cool Under Fire Challenges ------------ None Game ------ Seed HypertargetingPhaseBox Manual? 0 Play Time 03:24:07 Cumulative 347.5 hours Start 2025.11.10 @ 23:01:13 End 2025.11.11 @ 10:37:15 Sessions 3 Manual Loads 0 Difficulty Rogue Special Mode None Game No. 247 Rogue 247 Adventurer 0 Explorer 0 Win Type - Total 22 Types 9/0/7/1/1/0/1/1/1/1 Lore% 82 Gallery% 78 Achievement% 63 Wizard Run 0 Options --------- Layout 1 ASCII 0 Keyboard 0 Movement Mouse Keybinds 0 Fullscreen 2 Font 24/Smallcaps Map View 50x35 Zoom Use 0% Tactical HUD 1 Map Filters NONE Filters NONE Steam 1 RUN: 9e544e25-3c91-4f76-b8d5-23d5f99bc735